Cogmind - Beta 16 @@@ ROGUE MODE // 2026.02.02 @ 22:13:22 Player: Krysmphoenix Result: Destroyed by Z-Imprinter with Zionite Laser-M Performance ------------- Evolutions (1) 500 Regions Visited (6) 1200 Robots Destroyed (8) 40 Value Destroyed (151) 151 Prototype IDs (1) 20 Alien Tech Used (0) 0 Bonus (0) 0 TOTAL SCORE: 1911 Bonus ------- None Cogmind --------- Core Integrity 0/400 Matter 224/300 Energy 99/100 System Corruption 0% Temperature Cool (18) Movement Core (50) Location -7/Deep Caves Parts ------- > --- POWER (1) -------- (None) > --- PROPULSION (4) --- (None) > --- UTILITY (2) ------ (None) > --- WEAPON (2) ------- (None) > --- INVENTORY (5) ---- Light Deuterium Engine Hacking Drone Bay (1/1) Plasma Cutter CR-A16's Pointy Stick Self-destruct Interrupter (50) Peak State ------------ > --- POWER ------------ Light Deuterium Engine > --- PROPULSION ------- Flight Unit Flight Unit Flight Unit Flight Unit > --- UTILITY ---------- 0b10 Decoder Chip [Scout] Hacking Drone Bay > --- WEAPON ----------- Light Assault Rifle Plasma Cutter > --- INVENTORY -------- Light Deuterium Engine Shield Generator Assault Rifle Self-destruct Interrupter [Rating: 25] Favorites ----------- Power Light Deuterium Engine Engine Light Deuterium Engine Power Core Light Nuclear Core Propulsion Flight Unit Wheel Wheel Hover Unit Improved Hover Unit Flight Unit Flight Unit Utility Hacking Drone Bay Device Hacking Drone Bay Processor 0b10 Decoder Chip [Scout] Protection Improved Light Armor Plating Weapon Plasma Cutter Energy Gun Small Laser Ballistic Gun Light Assault Rifle Special Weapon Plasma Cutter Build | -11 -10 -10 -9 -9 -7 -7 ------- Run | Yrd Mat Min Mat Min Zio Dee Slots Evolved 2 | . . . 2 . . . Power . | . . . . . . . Propulsion 2 | . . . 2 . . . Utility . | . . . . . . . Weapon . | . . . . . . . Parts Attached 24 | 3 5 6 5 . 5 . Power 3 | 1 1 . 1 . . . Engine 2 | 1 . . 1 . . . Core 1 | . 1 . . . . . Reactor . | . . . . . . . Propulsion 10 | 1 2 5 2 . . . Treads . | . . . . . . . Leg . | . . . . . . . Wheel 1 | 1 . . . . . . Hover 4 | . 2 2 . . . . Flight 5 | . . 3 2 . . . Utility 6 | . . . 2 . 4 . Device 2 | . . . . . 2 . Storage . | . . . . . . . Processor 2 | . . . . . 2 . Hackware . | . . . . . . . Protection 2 | . . . 2 . . . Artifact . | . . . . . . . Weapon 5 | 1 2 1 . . 1 . Energy Gun 2 | 1 1 . . . . . Energy Cannon . | . . . . . . . Ballistic Gun 2 | . 1 1 . . . . Ballistic Cannon . | . . . . . . . Launcher . | . . . . . . . Special Weapon 1 | . . . . . 1 . Impact Weapon . | . . . . . . . Slashing Weapon . | . . . . . . . Piercing Weapon . | . . . . . . . Special Melee Weapon . | . . . . . . . Unidentified Prototypes 1 | . . . . . 1 . Parts Lost 10 | . . 2 . . . 8 Power 2 | . . 1 . . . 1 Propulsion 5 | . . 1 . . . 4 Utility 1 | . . . . . . 1 Weapon 2 | . . . . . . 2 Highest Loss Streak 8 | . . 1 . . . 8 To Critical Strikes . | . . . . . . . Average Backups 3 | . 2 3 2 5 3 4 Power . | . . . . 1 1 1 Propulsion . | . 1 3 . . . . Utility . | . . . 1 3 . 1 Weapon 1 | . 1 . . . 1 1 Tool/Special . | . . . . . . . Unused Backups 5 | . . . . . 3 2 Power 1 | . . . . . . 1 Propulsion . | . . . . . . . Utility 3 | . . . . . 3 . Weapon 1 | . . . . . . 1 Tool/Special . | . . . . . . . Average Slot Usage (%) 79 | . 58 65 83 100 93 83 Engine 10 | . 13 7 6 11 11 11 Wheel 1 | . 5 . . . . . Hover 5 | . 16 12 . . . . Flight 29 | . . 14 42 44 44 39 Device 6 | . . . . . 13 7 Processor 2 | . . . . . 4 11 Protection 2 | . . . 12 22 3 . Energy Gun 6 | . 21 14 . . . . Ballistic Gun 8 | . . 14 22 22 6 8 Special Weapon 4 | . . . . . 9 6 Peak Build Rating 25 | 3 10 10 16 16 25 25 Average Rating 13 | 2 6 5 12 16 20 18 On Entrance 10 | . 3 10 4 16 16 25 Avg Prop Armor Cover (%) . | . . . . . . . Naked Turns 5 | . . . . . . 5 Heaviest Build 14 | 4 9 9 14 14 14 10 Greatest Support 16 | 10 14 14 16 16 16 16 Greatest Overweight (x) 1 | . . 1 . . . 1 Average Overweight (x) . | . . . . . . . Largest Inventory Capacity 5 | 5 5 5 5 5 5 5 Average Capacity 5 | 5 5 5 5 5 5 5 Most Carried 5 | 3 5 5 5 5 5 5 Average Carried 3 | 1 2 3 2 5 4 5 Final Capacity 5 | 5 5 5 5 5 5 5 Final Carried 5 | 1 4 2 5 5 5 5 Class Distribution -------------------- 55% | Scavenger-Sprinter 44% | Mutant Dominant Class ---------------- Mutant | -10/Materials Mutant | -10/Mines Scavenger-Sprinter | -9/Materials Scavenger-Sprinter | -9/Mines Scavenger-Sprinter | -7/Zion Mutant | -7/Deep Caves Resources | -11 -10 -10 -9 -9 -7 -7 ----------- Run | Yrd Mat Min Mat Min Zio Dee Matter Collected 537 | 224 56 173 . . 84 . Remotely . | . . . . . . . Salvage Created 175 | . . 175 . . . . Parts 10 | . . 10 . . . . Haulers Intercepted . | . . . . . . . Recyclers Shooed . | . . . . . . . Parts Field Recycled . | . . . . . . . Retrieved Matter . | . . . . . . . Parts Self-Destructed . | . . . . . . . Prevented . | . . . . . . . Parts Restored . | . . . . . . . Kills | -11 -10 -10 -9 -9 -7 -7 ------- Run | Yrd Mat Min Mat Min Zio Dee Combat Hostiles Destroyed 8 | . . 8 . . . . Guns 8 | . . 8 . . . . Classes Destroyed 2 | . . 2 . . . . Swarmer 6 | . . 6 . . . . Grunt 2 | . . 2 . . . . Best Kill Streak 3 | . . 3 . . . . Combat Bots Only 3 | . . 3 . . . . Max Kills in Single Turn 1 | . . 1 . . . . Gunslinging . | . . . . . . . Exploded . | . . . . . . . Melee . | . . . . . . . Uniques/NPCs Destroyed . | . . . . . . . Combat | -11 -10 -10 -9 -9 -7 -7 -------- Run | Yrd Mat Min Mat Min Zio Dee Hostile Shots Fired 121 | . 1 56 2 . . 62 Missed 54 | . 1 16 1 . . 36 Hits 67 | . . 40 1 . . 26 Projectile 67 | . . 40 1 . . 26 Critical Strikes 1 | . . . 1 . . . Damage Taken 1156 | . . 366 15 . . 775 Core 475 | . . 73 . . . 402 Absorbed by Shields 30 | . . . . . . 30 Core Remaining (%) 85 | 100 . 70 . . . . Volleys Fired 37 | . . 25 . . 4 8 Largest 2 | . . 2 . . 1 2 Hottest 105 | . . 105 . . 20 40 Shots Fired 63 | . . 48 . . 4 11 Gun 59 | . . 48 . . . 11 Cannon . | . . . . . . . Launcher . | . . . . . . . Special 4 | . . . . . 4 . Kinetic 30 | . . 19 . . . 11 Thermal 33 | . . 29 . . 4 . Explosive . | . . . . . . . Electromagnetic . | . . . . . . . Robot Hit Streak 7 | . . 7 . . . 1 Robot Miss Streak 6 | . . 6 . . . 2 Penetration Max . | . . . . . . . Secondary Targets 1 | . . 1 . . . . Max Gunslinging Chain 1 | . . 1 . . . . Shots Hit Robots 33 | . . 29 . . . 4 Core Hits 11 | . . 11 . . . . Critical Kills . | . . . . . . . Critical Parts Destroyed . | . . . . . . . Critical Strikes . | . . . . . . . Melee Attacks . | . . . . . . . Impact . | . . . . . . . Slashing . | . . . . . . . Piercing . | . . . . . . . Sneak Attacks . | . . . . . . . Combat Hostiles . | . . . . . . . Follow-up Attacks . | . . . . . . . Damage Inflicted 398 | . . 359 . . . 39 Guns 398 | . . 359 . . . 39 Cannons . | . . . . . . . Explosions . | . . . . . . . Melee . | . . . . . . . Ramming . | . . . . . . . Kinetic 186 | . . 147 . . . 39 Thermal 212 | . . 212 . . . . Explosive . | . . . . . . . Electromagnetic . | . . . . . . . Impact . | . . . . . . . Slashing . | . . . . . . . Piercing . | . . . . . . . Highest Corruption 2 | . . . 2 2 2 . Average Corruption 2 | . . . 2 2 2 . Corruption Purged . | . . . . . . . Corruption Blocked . | . . . . . . . Effects 1 | . . . 1 . . . Data Loss (minor) 1 | . . . 1 . . . Overload Shots . | . . . . . . . Overflow Damage . | . . . . . . . Projectiles . | . . . . . . . Explosions . | . . . . . . . Melee . | . . . . . . . Knockbacks . | . . . . . . . Impact . | . . . . . . . Kinetic . | . . . . . . . Secondary . | . . . . . . . Self-Inflicted Damage . | . . . . . . . Shots . | . . . . . . . Rammed . | . . . . . . . Targets Rammed . | . . . . . . . Kicked . | . . . . . . . Crushed . | . . . . . . . Highest Temperature 316 | . . 316 29 . 2 31 Average Temperature 87 | . . 115 10 . 2 9 Received Heat Transfer 330 | . . 81 27 . . 222 Effects 1 | . . 1 . . . . Matter Decay 1 | . . 1 . . . . Siege Activations . | . . . . . . . Martial Activations . | . . . . . . . Shielding Activations . | . . . . . . . Robots Disrupted . | . . . . . . . Combat Hostiles . | . . . . . . . Robots Corrupted . | . . . . . . . Combat Hostiles . | . . . . . . . Parts Fried . | . . . . . . . Impact Corruptions . | . . . . . . . Robots Melted . | . . . . . . . Combat Hostiles . | . . . . . . . Parts Melted 2 | . . 2 . . . . Heat Transferred 498 | . . 498 . . . . Parts Sabotaged . | . . . . . . . Parts Stolen . | . . . . . . . Parts Stripped . | . . . . . . . Power Chain Reactions . | . . . . . . . Alert | -11 -10 -10 -9 -9 -7 -7 ------- Run | Yrd Mat Min Mat Min Zio Dee Maximum Alert Level . | . . . . . . . Low Security (%) 100 | 100 100 100 100 100 . . Level 1 . | . . . . . . . Level 2 . | . . . . . . . Level 3 . | . . . . . . . Level 4 . | . . . . . . . Level 5 . | . . . . . . . High Security . | . . . . . . . Max Security . | . . . . . . . Peak Influence 117 | . 30 117 37 10 . . Initial 37 | . . 7 37 10 . . Average 30 | . 2 60 22 10 . . Influence Increases 294 | . 42 220 32 . . . Destroy 0b10 Robot/C 160 | . . 160 . . . . Destroy Leader 30 | . . 30 . . . . Successful Hack 14 | . 12 . 2 . . . Disable Machine 15 | . . 15 . . . . Partial Spotted 30 | . . . 30 . . . Lose Combat Pursuer 45 | . 30 15 . . . . Influence Decreases 294 | . 22 143 100 19 10 . Entered New Map 102 | . . 13 60 19 10 . Time Decay 172 | . 22 110 40 . . . Lost Part 20 | . . 20 . . . . Squads Dispatched 1 | . 1 . . . . . Investigation . | . . . . . . . Extermination . | . . . . . . . Reinforcement 1 | . 1 . . . . . Assault . | . . . . . . . Garrison . | . . . . . . . Intercept . | . . . . . . . Searches Triggered . | . . . . . . . Construction Impeded . | . . . . . . . Haulers Reinforced . | . . . . . . . Active Scanning Responses . | . . . . . . . Cargo Convoy Interrupts . | . . . . . . . Stealth | -11 -10 -10 -9 -9 -7 -7 --------- Run | Yrd Mat Min Mat Min Zio Dee Distress Signals . | . . . . . . . Communications Jammed . | . . . . . . . Distress Signals . | . . . . . . . Times Spotted 22 | . 2 7 3 . . 10 Peak Tracking Total 12 | . 2 3 3 . . 12 Tactical Retreats 3 | . 1 1 . . . 1 Traps | -11 -10 -10 -9 -9 -7 -7 ------- Run | Yrd Mat Min Mat Min Zio Dee Traps Triggered 1 | . . . 1 . . . Indirectly . | . . . . . . . Trap Hack Attempts . | . . . . . . . Triggered . | . . . . . . . Disarmed . | . . . . . . . Reprogrammed . | . . . . . . . Reused . | . . . . . . . Traps Extracted . | . . . . . . . Installed . | . . . . . . . Triggered . | . . . . . . . Machines | -11 -10 -10 -9 -9 -7 -7 ---------- Run | Yrd Mat Min Mat Min Zio Dee Machines Disabled 4 | . . 1 . . 3 . Max in Single Turn 1 | . . 1 . . 1 . Machines Repaired . | . . . . . . . Machines Dismantled 3 | . . . . . 3 . Machines Sabotaged . | . . . . . . . Overloaded Fab Kills . | . . . . . . . Hacking | -11 -10 -10 -9 -9 -7 -7 --------- Run | Yrd Mat Min Mat Min Zio Dee Machines Accessed 4 | . 3 . 1 . . . Terminals 2 | . 2 . . . . . Fabricators . | . . . . . . . Repair Stations . | . . . . . . . Recycling Units 1 | . 1 . . . . . Scanalyzers 1 | . . . 1 . . . Garrison Access . | . . . . . . . Total Hacks 13 | . 4 . 9 . . . Successful 11 | . 3 . 8 . . . Failed 2 | . 1 . 1 . . . Catastrophic . | . . . . . . . Database Lockouts . | . . . . . . . Manual . | . . . . . . . Terminals 3 | . 3 . . . . . Fabricators . | . . . . . . . Repair Stations . | . . . . . . . Recycling Units 1 | . 1 . . . . . Scanalyzers 9 | . . . 9 . . . Garrison Access . | . . . . . . . Terminal Hacks 2 | . 2 . . . . . Record 1 | . 1 . . . . . Hauler Manifests 1 | . 1 . . . . . Fabricator Hacks . | . . . . . . . Repair Station Hacks . | . . . . . . . Recycling Unit Hacks 1 | . 1 . . . . . Report Inventory 1 | . 1 . . . . . Scanalyzer 8 | . . . 8 . . . Insert Component 4 | . . . 4 . . . Analyze 4 | . . . 4 . . . Garrison Access Hacks . | . . . . . . . Unauthorized Hacks . | . . . . . . . Terminals . | . . . . . . . Fabricators . | . . . . . . . Repair Stations . | . . . . . . . Recycling Units . | . . . . . . . Scanalyzers . | . . . . . . . Garrison Access . | . . . . . . . Data Cores Recovered . | . . . . . . . Used . | . . . . . . . Hacking Detections 2 | . 1 . 1 . . . Full Trace Events 1 | . . . 1 . . . Feedback Events . | . . . . . . . Feedback Blocked . | . . . . . . . Robot Schematics Acquired 3 | . . . . . 3 . Robots Built . | . . . . . . . Authchips . | . . . . . . . Time . | . . . . . . . Total Robot Build Rating . | . . . . . . . Part Schematics Acquired 18 | . . . 3 . 15 . Parts Built . | . . . . . . . Authchips . | . . . . . . . Time . | . . . . . . . Total Part Build Rating . | . . . . . . . Part Studies Acquired . | . . . . . . . Parts Repaired . | . . . . . . . Time . | . . . . . . . Parts Recycled . | . . . . . . . Recycled Matter . | . . . . . . . Retrieved Matter . | . . . . . . . Retrieved Components . | . . . . . . . Parts Scanalyzed 4 | . . . 4 . . . Part Schematics Acquired 3 | . . . 3 . . . Parts Damaged . | . . . . . . . Bothacking | -11 -10 -10 -9 -9 -7 -7 ------------ Run | Yrd Mat Min Mat Min Zio Dee Used RIF Installer . | . . . . . . . Robots Hacked . | . . . . . . . Non-combat . | . . . . . . . Combat . | . . . . . . . Robot Hacks Applied . | . . . . . . . Relay Couplers Released . | . . . . . . . Fabnet Peak Effective % . | . . . . . . . Robots Rewired . | . . . . . . . Allies Hacked . | . . . . . . . Hacks Repelled . | . . . . . . . Allies | -11 -10 -10 -9 -9 -7 -7 -------- Run | Yrd Mat Min Mat Min Zio Dee Total Allies . | . . . . . . . Largest Group . | . . . . . . . Highest-Rated Group . | . . . . . . . Highest-Rated Ally . | . . . . . . . Total Orders . | . . . . . . . Ally Attacks . | . . . . . . . Total Damage . | . . . . . . . Kills . | . . . . . . . Allies Corrupted . | . . . . . . . Allies Melted . | . . . . . . . Intel | -11 -10 -10 -9 -9 -7 -7 ------- Run | Yrd Mat Min Mat Min Zio Dee Active Infowar (turns) 247 | . . . . . 164 83 Decoding 247 | . . . . . 164 83 Robot Analysis Total . | . . . . . . . Derelict Logs Recovered 2 | . . . . . 2 . Drone Launches . | . . . . . . . Drone Recoveries . | . . . . . . . Exploration | -11 -10 -10 -9 -9 -7 -7 ------------- Run | Yrd Mat Min Mat Min Zio Dee Turns Passed 1087 | 26 187 231 84 3 468 88 Spaces Moved 1904 | 26 232 238 177 3 1037 191 Core 19 | 4 . . . . . 15 Treads . | . . . . . . . Legs . | . . . . . . . Wheels 73 | 22 51 . . . . . Hover 255 | . 181 74 . . . . Flight 1557 | . . 164 177 3 1037 176 Fastest Speed 31 | 50 56 37 31 31 31 31 Average Speed 37 | 75 61 43 31 31 31 35 Slowest Speed 120 | 80 80 120 31 31 31 120 Overloaded Moves . | . . . . . . . Propulsion Burnouts . | . . . . . . . Robots Hopped 1 | . . 1 . . . . Potential Cave-ins . | . . . . . . . Cave-ins Triggered . | . . . . . . . Exploration Rate (%) 36 | 3 42 73 16 3 71 46 Regions Visited 6 Branch Regions 4 Pre-discovered Areas 1 | . . . . . 1 . Known Exits Taken . | . . . . . . . Unknown Exits Taken 6 | 1 1 1 1 1 1 . Scrap Searched 3 | . . . . . 3 . Spaces Dug . | . . . . . . . Terrain Destroyed . | . . . . . . . Melee . | . . . . . . . Projectile . | . . . . . . . AOE . | . . . . . . . Terrain Rammed . | . . . . . . . Walls Destroyed . | . . . . . . . Machines Disabled . | . . . . . . . Actions | -11 -10 -10 -9 -9 -7 -7 --------- Run | Yrd Mat Min Mat Min Zio Dee Total 2152 | 32 274 315 205 4 1120 202 Wait 109 | . 30 32 14 2 31 . Move 1896 | 25 231 235 176 2 1036 191 Hop 1 | . . 1 . . . . Pick Up 31 | 4 6 6 8 . 7 . Fast Attach . | . . . . . . . Attach 14 | 3 2 1 6 . 2 . Detach 2 | . . . 1 . 1 . Swap 18 | . 4 8 . . 4 2 Drop 16 | . 1 7 . . 7 1 Fire 37 | . . 25 . . 4 8 Melee . | . . . . . . . Ram . | . . . . . . . Kick . | . . . . . . . Crush . | . . . . . . . Escape Stasis . | . . . . . . . Rewire . | . . . . . . . Trap . | . . . . . . . Miscellaneous 28 | . . . . . 28 . Route ------- -11/Scrapyard -10/Materials (discovered 2 exits: *Mat / [*Min]) -10/Mines (discovered 2 exits: *Mat x2) -9/Materials -9/Mines -7/Zion (discovered 2 exits: [*Dee] / *Pro) -7/Deep Caves History --------- Turn | Location | Event 10 | -11/Scrapyard | Discovered new exit (range 16) 27 | -11/Scrapyard | Entered Materials 28 | -10/Materials | Met a group of wandering Federalists 161 | -10/Materials | Discovered new exit (range 15) 195 | -10/Materials | Discovered new exit (range 16) 214 | -10/Materials | Entered Mines 310 | -10/Mines | Build established: Mutant 353 | -10/Mines | Discovered new exit (range 8) 437 | -10/Mines | Discovered new exit (range 8) 445 | -10/Mines | Entered Materials 445 | -9/Materials | Evolved 2 slots: Propulsion x2 508 | -9/Materials | Discovered new exit (range 11) 529 | -9/Materials | Entered Mines 530 | -9/Mines | A Derelict revealed a hidden shortcut to a safe place 532 | -9/Mines | Entered Zion 605 | -7/Zion | System corruption cleaned by Quarantine Array 676 | -7/Zion | Learned Factory emergency access door positions 681 | -7/Zion | Given the Hacking Drone Bay 681 | -7/Zion | Found Prototype Device 684 | -7/Zion | Identified Hacking Drone Bay 743 | -7/Zion | Build established: Scavenger-Sprinter 779 | -7/Zion | Discovered new exit (range 3) 779 | -7/Zion | Saw the warning signs outside the Deep Caves entrance 849 | -7/Zion | Identified exit to Proximity Caves 858 | -7/Zion | Found CR-A16's Pointy Stick 860 | -7/Zion | Learned 4 Factory zone layouts 1000 | -7/Zion | Entered Deep Caves 1038 | -7/Deep Caves | Attacked by Z-Imprinter 1067 | -7/Deep Caves | Z-Facility disabled 1081 | -7/Deep Caves | Core integrity fell below 50% 1086 | -7/Deep Caves | Core integrity fell below 20% 1088 | -7/Deep Caves | Destroyed by Z-Imprinter with Zionite Laser-M Last Messages --------------- "AD-0RF" melted an entire patrol, together with almost all the Warlord bots trying to fight it off. [Achievement: Signs Are For Wimps] [Achievement: Adventurer] LOCATION=UNKNOWN GOAL=ESCAPE 01028_ NEW_ZION: Z-Facility proximity alert. 01028_ OG-RLB(o) is busy at the terminal. Z-Imprinter: GET AWAY FROM HERE! I've worked too hard for our future just to have you ruin everything! 01043_ B9-BFG(o) is busy at the terminal. 01053_ Dropped Shield Generator. 01054_ Lgt. Assault Rifle destroyed. 01058_ Assault Rifle destroyed. 01067_ Z-Facility disabled. 01069_ Flight Unit destroyed. 01081_ Lgt. Deuterium Engine destroyed. 01083_ 0b10 Decoder Chip [Scout] destroyed. Map ----- +----------------------------------------------------+ | | | | | | | | | | | | | | | | | | | | | | | | | | | | | | | ?????????????????????????????????????????????????? | | ????????#???????###############??????????????????? | | ????????# ???#### ##?????????????????? | | ????????# ??## #????##???????????? | | ######??# ?## ###### #??????##### | | # # #?# ## ## # ????### | | ## ##### | | | | | | | | I @ | | """" """""" | | """""""""""""" | | """"""""""""" | | """""""""""""" | | """"""""""" | | """""""""""""" | | """""???????"" | | """"????"?""" | | """""???"""""" | | """"???" " " | | """"??""" | | """"??"" | | """"???"" | | """"???"" | | """"????""" | | """???"""""" | | """"?" | | """""" """ | | """""????"""" # | | """"????""""" ! # | | """"" ???"""" | | """" ""?"""" | | """" """"" | | """" """ | +----------------------------------------------------+ Best States ------------- Heat Dissipation 28 Energy Generation 14 Energy Capacity 160 Matter Stores 300 Matter Capacity 300 Sight Range 16 Terrain Scan Density 10 Armor Coverage 300 Evasion (%) 63 Targeting Accuracy 6 Item Schematics ----------------- Lgt. Deuterium Engine | -9/Materials | Scanalyzed Imp. Light Armor Plating | -9/Materials | Scanalyzed Shield Generator | -9/Materials | Scanalyzed Imp. Cryofiber Web | -7/Zion | Archive Recalibrator | -7/Zion | Archive Lightning Gun | -7/Zion | Archive Fission Core | -7/Zion | Archive Arm. Leg | -7/Zion | Archive Transmission Jammer | -7/Zion | Archive Adv. Field Recycling Unit | -7/Zion | Archive Hvy. Ion Cannon | -7/Zion | Archive Lgt. Fission Core | -7/Zion | Archive Adv. ECM Suite | -7/Zion | Archive Angular Momentum Engine | -7/Zion | Archive System Restoration Module | -7/Zion | Archive Enh. Gauss Cannon | -7/Zion | Archive Imp. Cooling System | -7/Zion | Archive Imp. Medium Treads | -7/Zion | Archive Robot Schematics ------------------ C-17 Slicer | -7/Zion | Archive W-25 Informer | -7/Zion | Archive B-48 Gladiator | -7/Zion | Archive Fabricated ------------ Nothing Repaired ---------- Nothing Studied --------- None Alien Tech Used ----------------- None Achievements -------------- Adventurer Into The Breach Robot Respite Shopping List Signs Are For Wimps Tourist Challenges ------------ None Game ------ Seed GodLightRailcannon Manual? 0 Play Time 00:34:41 Cumulative 2.8 hours Start 2026.02.02 @ 21:30:11 End 2026.02.02 @ 22:13:22 Sessions 1 Manual Loads 0 Difficulty Rogue Special Mode None Game No. 9 Rogue 6 Adventurer 3 Explorer 0 Win Type - Total 0 Types 0/0/0/0/0/0/0/0/0/0 Lore% 4 Gallery% 7 Achievement% 5 Wizard Run 0 Options --------- Layout 1 ASCII 0 Keyboard 0 Movement Numpad Keybinds 0 Fullscreen 2 Font 24/Proggy Map View 50x35 Zoom Use 2% Tactical HUD 1 Map Filters NONE Filters NONE Steam 1 RUN: d2b4286a-c58f-425f-9b89-8d5439f880fc